bitfinex/quotes_SOLUSD_20250226
["timestamp","ask_amount","ask_price","bid_price","bid_amount"]
[1740560552817,3.62208265,140.86,140.8,84.5516]
[1740560553134,7.0997,140.85,140.8,84.5516]
[1740560553337,20.0,140.82,140.79,6.5159]
[1740560553513,81.1,140.84,140.78,0.03]
[1740560553703,18.64964886,140.83,140.78,0.03]
[1740560554334,99.74964886,140.83,140.78,0.03]
[1740560555724,7.1012,140.82,140.78,0.03]
[1740560556225,81.1,140.83,140.78,0.03]
[1740560556606,88.2008,140.83,140.78,0.03]
[1740560557532,81.1,140.83,140.78,0.03]
[1740560558407,88.2008,140.83,140.78,0.03]
[1740560558708,7.1008,140.83,140.78,82.93]
[1740560558925,3.57667618,140.84,140.78,82.93]
[1740560559531,81.1,140.86,140.78,82.93]
[1740560559829,81.1,140.86,140.79,7.1027]
[1740560560029,7.1618,140.87,140.79,90.0027]
[1740560560529,3.57687928,140.86,140.79,90.0027]
[1740560560728,0.063,140.87,140.8,6.0474]
[1740560560927,0.063,140.87,140.81,18.64964886]
[1740560561119,0.063,140.87,140.82,1.6118]
[1740560562126,0.063,140.87,140.82,8.7125]
[1740560563810,0.063,140.87,140.83,18.64964886]
[1740560564010,0.063,140.87,140.84,6.3162]
[1740560564229,0.063,140.87,140.84,225.4162]
[1740560564535,0.063,140.87,140.85,18.64964886]
[1740560565616,0.063,140.87,140.86,7.0992]
[1740560566337,0.063,140.87,140.86,25.74884886]
[1740560566538,0.063,140.88,140.87,18.64964886]
[1740560566711,0.063,140.88,140.87,237.74964886]
[1740560567121,0.063,140.88,140.87,244.26044886]
[1740560567822,0.063,140.88,140.87,251.35914886]
[1740560572123,0.063,140.88,140.87,89.4108]
[1740560572426,0.063,140.88,140.83,7.6181]
[1740560572629,0.063,140.88,140.83,90.5181]
[1740560573943,0.063,140.88,140.83,82.9]
[1740560574245,7.1612,140.88,140.81,219.1]
[1740560574441,7.1612,140.88,140.81,82.9]
[1740560575036,24.9067,140.88,140.81,82.9]
[1740560577248,24.9067,140.88,140.79,89.0865]
[1740560577449,99.74964886,140.87,140.79,89.0865]
[1740560577655,99.74964886,140.87,140.81,0.063]
[1740560578338,7.0992,140.86,140.81,0.063]
[1740560579925,24.8473,140.86,140.81,0.063]
[1740560580126,99.74964886,140.85,140.81,0.063]
[1740560580342,103.29240027,140.85,140.81,0.063]
[1740560580526,7.1002,140.84,140.81,0.063]
[1740560584239,18.64964886,140.83,140.78,0.03]
[1740560584444,99.74964886,140.83,140.78,0.03]
[1740560584642,81.1,140.83,140.78,0.03]
[1740560585052,7.1002,140.84,140.78,82.93]
[1740560586361,81.1,140.83,140.78,0.03]
[1740560587859,88.2011,140.83,140.78,0.03]
[1740560589637,3.54275141,140.85,140.78,102.93]
[1740560589842,0.063,140.87,140.78,102.93]
[1740560590050,0.063,140.87,140.79,7.1027]
[1740560591162,0.063,140.87,140.81,6.4309]
[1740560591465,0.063,140.87,140.82,18.64964886]
[1740560592467,0.063,140.87,140.82,237.74964886]
[1740560593131,0.063,140.87,140.82,82.9]
[1740560593671,20.063,140.87,140.82,82.9]
[1740560594441,20.063,140.87,140.82,90.0012]
[1740560594642,20.063,140.87,140.82,82.9]
[1740560595271,0.063,140.87,140.82,90.0012]
[1740560595642,0.063,140.87,140.82,82.9]
[1740560595962,0.063,140.87,140.82,90.0012]
[1740560597673,0.063,140.87,140.82,82.9]
[1740560601876,7.0992,140.86,140.82,82.9]
[1740560604646,7.0992,140.86,140.81,0.03]
[1740560605184,99.74964886,140.85,140.81,0.03]
[1740560605846,99.74964886,140.85,140.75,0.03]
[1740560605847,20.0,140.8,140.75,0.03]
[1740560606246,84.67809718,140.82,140.75,0.03]
[1740560606659,84.67809718,140.82,140.77,20.0]
[1740560606855,3.54543685,140.84,140.78,20.0]
[1740560607059,7.0997,140.85,140.78,102.9]
[1740560608167,10.72598207,140.85,140.78,102.9]
[1740560608355,10.72598207,140.85,140.78,110.0027]
[1740560610575,18.64964886,140.84,140.78,82.9]
[1740560611578,99.74964886,140.84,140.75,0.03]
[1740560611755,25.849,140.85,140.75,0.03]
[1740560611756,3.55475378,140.8,140.75,0.03]
[1740560612356,10.65725378,140.8,140.75,0.03]
[1740560614375,3.55475378,140.8,140.75,0.03]
[1740560615351,83.88985427,140.82,140.75,0.03]
[1740560615561,7.1004,140.84,140.75,219.13]
[1740560616077,3.52193536,140.83,140.75,219.13]
[1740560616561,3.52193536,140.83,140.76,7.1042]
[1740560617163,10.62303536,140.83,140.75,226.2346]
[1740560618269,27.1017,140.81,140.75,7.1346]
[1740560618476,27.1017,140.81,140.75,0.03]
[1740560622781,20.0,140.81,140.75,0.03]
[1740560622984,3.52193536,140.83,140.75,219.13]
[1740560623173,7.1004,140.84,140.75,219.13]
[1740560623481,88.1994,140.86,140.76,18.64964886]
[1740560623658,0.063,140.87,140.77,1.5301]
[1740560623861,0.063,140.87,140.8,6.1522]
[1740560624163,0.063,140.87,140.82,18.64964886]
[1740560624378,0.063,140.87,140.83,6.1895]
[1740560624581,0.063,140.88,140.84,19.71422645]
[1740560624764,0.063,140.88,140.86,18.64964886]
[1740560624963,0.063,140.88,140.86,237.74964886]
[1740560625991,0.063,140.93,140.86,244.35204886]
[1740560626196,0.063,140.93,140.89,20.0]
[1740560626661,0.063,140.93,140.86,225.7024]
[1740560627362,0.063,140.93,140.86,232.8015]
[1740560627562,0.063,140.93,140.86,225.7024]
[1740560628468,0.063,140.93,140.82,7.1008]
[1740560628780,18.64964886,140.92,140.82,88.9052]
[1740560628984,20.0,140.89,140.82,88.9052]
[1740560629292,18.64964886,140.88,140.79,219.1]
[1740560629590,18.64964886,140.88,140.79,82.9]
[1740560629963,18.64964886,140.88,140.79,90.0024]
[1740560630162,18.64964886,140.88,140.79,82.9]
[1740560630358,99.74964886,140.88,140.79,82.9]
[1740560630898,18.64964886,140.86,140.79,82.9]
[1740560631063,7.0987,140.87,140.79,82.9]
[1740560631393,3.54727759,140.86,140.79,90.0025]
[1740560632089,20.0,140.89,140.79,90.0025]
[1740560632293,7.0962,140.92,140.83,20.0]
[1740560632500,81.163,140.93,140.85,8.0056]
[1740560633278,0.063,140.93,140.86,18.64964886]
[1740560633571,0.063,140.93,140.86,237.74964886]
[1740560634298,0.063,140.93,140.9,7.0972]
[1740560634468,0.063,140.93,140.91,18.64964886]
[1740560635576,0.063,140.93,140.9,226.1972]
[1740560636398,0.063,140.93,140.9,219.1]
[1740560637886,0.063,140.93,140.9,226.1971]
[1740560638841,0.063,140.93,140.88,82.9]
[1740560640084,0.063,140.93,140.88,219.1]
[1740560640689,0.063,140.93,140.88,226.1981]
[1740560646020,0.063,140.93,140.88,219.1]
[1740560646210,0.063,140.93,140.88,226.1981]
[1740560646912,0.063,140.93,140.89,18.64964886]
[1740560647310,0.063,140.93,140.9,7.0972]
[1740560650622,0.063,140.93,140.9,49.8172]
[1740560651329,0.063,140.93,140.9,268.9172]
[1740560652621,0.063,140.93,140.92,56.0368]
[1740560652919,0.063,141.01,140.93,62.91354886]
[1740560653109,0.063,141.01,140.93,282.01354886]
[1740560654609,0.063,141.01,140.95,18.64964886]
[1740560655816,0.063,141.01,140.96,7.0942]
[1740560656018,0.063,141.01,140.96,226.1942]
[1740560658115,0.063,141.01,140.96,132.7142]
[1740560658322,0.063,141.01,140.98,42.72]
[1740560658516,0.063,141.01,141.0,18.64964886]
[1740560658748,0.063,141.01,141.0,237.74964886]
[1740560658945,0.063,141.01,141.0,281.98904886]
[1740560660542,0.063,141.01,141.0,289.08114886]
[1740560660923,0.063,141.01,141.0,82.9]
[1740560661443,0.063,141.01,140.95,89.3588]
[1740560662026,0.063,141.01,140.95,82.9]
[1740560664156,81.1,141.0,140.93,82.963]
[1740560665824,88.1924,141.0,140.93,82.963]
[1740560666454,3.5812445,140.99,140.93,82.963]
[1740560666628,81.1,141.0,140.93,90.0586]
[1740560666828,0.063,141.01,140.94,18.64964886]
[1740560667130,0.063,141.01,140.94,238.81340618]
[1740560667339,0.063,141.01,140.94,237.74964886]
[1740560667550,0.063,141.01,140.94,238.74964886]
[1740560667730,0.063,141.01,140.94,237.74964886]
[1740560667930,0.063,141.01,140.95,7.0947]
[1740560668130,20.063,141.01,140.95,82.9]
[1740560669726,0.063,141.01,140.97,18.64964886]
[1740560669935,0.063,141.01,140.97,25.74324886]
[1740560670127,0.063,141.01,140.96,6.4949]
[1740560670128,0.063,141.01,140.95,219.1]
[1740560671758,7.1546,141.01,140.95,219.1]
[1740560672146,20.0,140.98,140.95,82.9]
[1740560673143,20.0,140.98,140.93,0.063]
[1740560673657,7.0947,140.95,140.93,0.063]
[1740560674233,27.0942,140.96,140.93,0.063]
[1740560674431,20.0,140.96,140.93,0.063]
[1740560675256,8.6132,141.0,140.93,0.063]
[1740560675951,20.0,140.96,140.93,0.063]
[1740560676657,81.1,140.99,140.93,0.063]
[1740560676953,20.0,140.97,140.93,82.963]
[1740560677256,7.0925,141.0,140.93,82.963]
[1740560677855,7.0925,141.0,140.93,90.0584]
[1740560678859,7.0925,141.0,140.93,82.963]
[1740560679043,7.0925,141.0,140.93,90.0586]
[1740560679353,0.063,141.01,140.94,18.64964886]
[1740560679534,0.063,141.01,140.95,6.1553]
[1740560679729,0.063,141.01,140.96,7.0942]
[1740560679934,0.063,141.01,140.96,226.1942]
[1740560680154,0.063,141.01,140.97,18.64964886]
[1740560680354,0.063,141.01,140.97,237.74964886]
[1740560680959,0.063,141.01,140.97,219.1]
[1740560681652,0.063,141.01,140.97,82.9]
[1740560681836,7.1546,141.01,140.97,82.9]
[1740560684062,7.1546,141.01,140.95,89.0553]
[1740560684261,24.8838,141.01,140.95,82.9]
[1740560684464,20.0,140.98,140.95,82.9]
[1740560684647,20.0,140.98,140.93,136.263]
[1740560684648,20.0,140.96,140.93,82.963]
[1740560684833,20.0,140.96,140.93,0.063]
[1740560685340,3.59806642,140.99,140.93,0.063]
[1740560685541,81.1,141.0,140.93,0.063]
[1740560686067,7.0927,140.99,140.93,0.063]
[1740560687265,7.1548,141.01,140.93,82.963]
[1740560687570,7.1548,141.01,140.93,219.163]
[1740560688670,7.1548,141.01,140.93,226.2583]
[1740560691272,0.063,141.01,140.95,13.4869]
[1740560691651,0.063,141.01,140.96,18.64964886]
[1740560691868,0.063,141.01,140.96,237.74964886]
[1740560693472,0.063,141.01,140.97,7.0937]
[1740560694568,0.063,141.01,140.96,226.194]
[1740560695854,0.063,141.01,140.96,89.994]
[1740560696075,0.063,141.01,140.96,82.9]
[1740560697288,20.0,141.0,140.94,82.9]
[1740560697457,20.0,140.99,140.94,82.9]
[1740560697660,7.0932,140.98,140.94,82.9]
[1740560697858,7.0932,140.98,140.93,0.063]
[1740560697859,20.0,140.95,140.93,0.063]
[1740560698245,20.0,140.94,140.93,0.063]
[1740560698460,38.64964886,140.94,140.89,82.9]
[1740560698646,38.64964886,140.94,140.87,0.063]
[1740560699079,20.0,140.9,140.87,0.063]
[1740560699873,27.0977,140.9,140.87,0.063]
[1740560701559,99.74964886,140.89,140.87,0.063]
[1740560702682,25.74784886,140.88,140.87,0.063]
[1740560702973,7.0977,140.89,140.87,0.063]
[1740560703174,10.73247507,140.91,140.87,0.063]
[1740560703766,20.0,140.88,140.87,0.063]
[1740560703966,38.64964886,140.88,140.87,0.063]
[1740560704576,18.64964886,140.87,140.79,219.1]
[1740560704761,7.0997,140.85,140.79,82.9]
[1740560704958,20.0,140.81,140.78,0.063]
[1740560706069,20.0,140.8,140.78,0.063]
[1740560707055,7.1027,140.79,140.78,0.063]
[1740560707275,20.0,140.8,140.78,0.063]
[1740560707276,81.1,140.82,140.78,0.063]
[1740560707660,81.1,140.87,140.78,82.963]
[1740560707968,20.0,140.83,140.78,82.963]
[1740560709079,27.1009,140.83,140.78,82.963]
[1740560709881,44.8527,140.83,140.78,0.063]
[1740560710662,3.62414519,140.82,140.78,0.063]
[1740560711165,20.0,140.79,140.78,0.063]
[1740560712562,7.1017,140.81,140.78,0.063]
[1740560712763,81.1,140.82,140.78,0.063]
[1740560712959,22.31285646,140.86,140.78,0.063]
[1740560712960,7.1002,140.84,140.78,0.063]
[1740560713173,7.1022,140.8,140.78,0.063]
[1740560714680,20.0,140.79,140.78,0.063]
[1740560716489,27.1027,140.79,140.78,0.063]
[1740560718664,1.0,140.78,140.75,0.03]
[1740560718859,81.1,140.77,140.75,0.0001]
[1740560719174,83.1,140.76,140.75,0.0001]
[1740560719374,20.0,140.72,140.71,0.0001]
[1740560719563,81.1,140.73,140.71,0.0001]
[1740560719759,88.2063,140.72,140.71,0.0001]
[1740560720176,27.1063,140.72,140.71,0.0001]
[1740560720361,7.1063,140.72,140.71,0.0001]
[1740560720771,27.1063,140.72,140.71,0.0001]
[1740560720976,7.1063,140.72,140.71,0.0001]
[1740560721271,27.1063,140.72,140.71,0.0001]
[1740560721468,10.65680299,140.72,140.71,0.0001]
[1740560722278,10.65680299,140.72,140.69,0.03]
[1740560722279,1.0,140.67,140.65,0.063]
[1740560722592,1.0,140.67,140.61,0.03]
[1740560722887,2.0,140.67,140.61,0.03]
[1740560723084,21.0,140.69,140.61,0.03]
[1740560723287,2.0,140.68,140.61,0.03]
[1740560723474,1.0,140.67,140.61,0.03]
[1740560723869,20.0,140.64,140.61,0.03]
[1740560724872,7.1088,140.67,140.61,0.03]
[1740560725076,7.1088,140.67,140.61,82.93]
[1740560725271,10.69612572,140.67,140.61,82.93]
[1740560726087,17.7678,140.71,140.61,82.93]
[1740560726288,7.1073,140.7,140.61,219.13]
[1740560726488,7.1073,140.7,140.61,226.2416]
[1740560726702,7.1073,140.7,140.62,6.3928]
[1740560728001,43.79928964,140.75,140.62,6.3928]
[1740560728002,7.1058,140.73,140.63,1.5717]
[1740560728498,7.1058,140.73,140.63,220.6717]
[1740560728991,7.1047,140.75,140.64,7.1103]
[1740560729192,20.0,140.72,140.64,226.2103]
[1740560729391,84.6140416,140.74,140.64,226.2103]
[1740560730479,91.7197416,140.74,140.64,226.2103]
[1740560730876,109.4829416,140.74,140.64,226.2103]
[1740560731284,81.1,140.73,140.64,82.9]
[1740560731490,81.1,140.72,140.64,82.9]
[1740560731874,20.0,140.69,140.64,82.9]
[1740560732075,20.0,140.68,140.63,1.6017]
[1740560732278,20.0,140.68,140.63,0.03]
[1740560732492,7.1088,140.67,140.63,0.03]
[1740560743406,7.1718,140.67,140.63,0.03]
[1740560744505,0.063,140.67,140.63,0.03]
[1740560747988,0.063,140.67,140.63,219.13]
[1740560750307,0.063,140.67,140.64,42.72]
[1740560750477,0.063,140.67,140.64,7.1103]
[1740560751607,0.063,140.67,140.63,226.2406]
[1740560753100,0.063,140.67,140.63,244.0177]
[1740560753305,0.063,140.67,140.64,1.5791]
[1740560754783,0.063,140.67,140.63,226.2406]
[1740560754985,0.063,140.67,140.63,82.93]
[1740560755604,0.063,140.67,140.63,90.0408]
[1740560758314,0.063,140.67,140.63,219.13]
[1740560763515,5.31474098,140.66,140.63,226.2405]
[1740560764020,5.31474098,140.66,140.63,219.13]
[1740560765293,5.31474098,140.65,140.63,219.13]
[1740560766791,5.31474098,140.65,140.63,226.2406]
[1740560767198,0.063,140.67,140.63,226.2406]
[1740560769900,0.063,140.67,140.63,286.7377]
[1740560770105,0.063,140.67,140.65,7.6384]
[1740560770516,0.063,140.67,140.66,42.72]
[1740560770803,0.063,140.67,140.66,261.82]
[1740560771320,0.063,140.67,140.66,219.1]
[1740560772209,5.38553627,140.67,140.66,226.2093]
[1740560772603,5.38553627,140.67,140.66,230.41993635]
[1740560774117,5.38553627,140.67,140.66,226.2093]
[1740560774314,0.063,140.67,140.66,226.2093]
[1740560774630,0.063,140.67,140.66,82.9]
[1740560780028,13.90243143,140.67,140.66,70.06653777]
[1740560780419,13.90243143,140.67,140.66,206.26653777]
[1740560780611,13.90243143,140.67,140.66,213.37583777]
[1740560781041,13.90243143,140.67,140.66,206.26653777]
[1740560782219,0.063,140.67,140.66,216.09091569]
[1740560783352,0.063,140.67,140.66,228.82708468]
[1740560783933,0.063,140.67,140.66,219.00270676]
[1740560785040,0.063,140.67,140.66,12.73616899]
[1740560785225,5.38955461,140.67,140.64,7.1102]
[1740560785424,5.38955461,140.67,140.64,77.17673777]
[1740560786312,5.38955461,140.67,140.64,256.09673777]
[1740560786514,5.38955461,140.67,140.64,273.87253777]
[1740560787522,0.063,140.67,140.64,273.87253777]
[1740560787923,2.87322129,140.77,140.66,87.6026]
[1740560788240,2.87322129,140.77,140.68,1.6111]
[1740560788540,7.24454135,140.78,140.68,1.6111]
[1740560789326,7.24454135,140.78,140.69,11.73963107]
[1740560789527,7.24454135,140.78,140.69,218.00616884]
[1740560789726,3.55799693,140.77,140.69,218.00616884]
[1740560789927,3.55799693,140.77,140.69,210.89836884]
[1740560790133,20.0,140.75,140.69,210.89836884]
[1740560790335,1.5261,140.72,140.69,4.63183107]
[1740560790532,21.5261,140.72,140.69,4.63183107]
[1740560791043,81.1,140.75,140.7,1.78147349]
[1740560791354,7.1053,140.74,140.7,1.78147349]
[1740560791530,3.59398308,140.73,140.7,1.78147349]
[1740560792045,20.0,140.71,140.7,1.78147349]
[1740560793448,27.1068,140.71,140.7,1.78147349]
[1740560794648,32.42960491,140.71,140.66,70.06653777]
[1740560795950,27.1068,140.71,140.66,70.06653777]
[1740560798745,27.1068,140.71,140.67,4.89980978]
[1740560800244,20.0,140.71,140.66,77.17573777]
[1740560800566,19.3827,140.76,140.66,77.17573777]
[1740560800772,19.3827,140.76,140.66,213.37573777]
[1740560801577,27.1062,140.73,140.66,213.37573777]
[1740560802066,27.1062,140.73,140.66,206.26653777]
[1740560802274,27.1062,140.73,140.66,206.29653777]
[1740560802466,0.063,140.71,140.66,206.29653777]
[1740560802974,0.063,140.71,140.66,213.40583777]
[1740560803874,0.063,140.71,140.66,213.40563777]
[1740560805367,0.063,140.71,140.68,6.0079]
[1740560806267,0.063,140.71,140.69,7.1078]
[1740560806480,0.063,140.71,140.69,213.37433777]
[1740560807955,0.063,140.71,140.69,206.26653777]
[1740560808860,0.063,140.71,140.69,70.06653777]
[1740560819686,0.063,140.71,140.66,206.29653777]
[1740560819892,0.063,140.71,140.66,70.09653777]
[1740560825599,0.063,140.71,140.66,77.20563777]
[1740560825791,0.063,140.71,140.67,6.4916]
[1740560826792,0.063,140.71,140.67,76.55813777]
[1740560827087,0.063,140.71,140.67,219.86683777]
[1740560827287,0.063,140.71,140.67,284.96683777]
[1740560827589,0.063,140.71,140.7,20.0]
[1740560827773,0.063,140.71,140.7,226.26653777]
[1740560829077,0.063,140.71,140.7,233.37383777]
[1740560832594,0.063,140.78,140.71,51.8872]
[1740560832797,0.063,140.78,140.72,2.06530389]
[1740560832996,0.063,140.78,140.76,20.0]
[1740560833179,0.063,140.78,140.77,6.376]
[1740560834298,0.063,140.78,140.76,206.26653777]
[1740560834497,0.063,140.78,140.76,70.06653777]
[1740560835185,0.063,140.78,140.76,77.17063777]
[1740560836284,0.063,140.78,140.76,70.06653777]
[1740560837096,0.063,140.78,140.76,77.17073777]
[1740560838504,0.063,140.78,140.76,213.37073777]
[1740560840100,0.063,140.78,140.76,257.09073777]
[1740560840297,0.063,140.78,140.76,256.09073777]
[1740560843201,0.063,140.78,140.77,42.72]
[1740560843504,0.063,140.78,140.77,281.47201986]
[1740560843688,0.063,140.78,140.77,280.40693777]
[1740560844487,0.063,140.78,140.77,257.02693777]
[1740560845317,0.063,140.78,140.77,262.48413777]
[1740560847404,0.063,140.78,140.77,206.26653777]
[1740560848507,0.063,140.78,140.77,70.06653777]
[1740560852207,0.063,140.78,140.77,77.17023777]
[1740560853114,0.063,140.78,140.77,213.37023777]
[1740560854804,0.063,140.78,140.77,206.26653777]
[1740560855521,0.063,140.78,140.77,70.06653777]
[1740560859412,0.063,140.78,140.73,142.6341]
[1740560859413,0.063,140.78,140.73,212.70063777]
[1740560859609,0.063,140.78,140.73,206.26653777]
[1740560859795,0.063,140.78,140.73,70.06653777]
[1740560864323,1.6113,140.78,140.73,70.06653777]
[1740560865193,7.1037,140.77,140.73,70.06653777]
[1740560870135,1.6113,140.78,140.73,206.26653777]
[1740560870427,0.063,140.78,140.73,231.13663777]
[1740560870606,0.063,140.78,140.76,20.0]
[1740560870802,0.063,140.78,140.76,232.84463777]
[1740560871425,0.063,140.78,140.77,7.1037]
[1740560874138,0.063,140.78,140.77,214.43526694]
[1740560874317,0.063,140.78,140.77,213.37023777]
[1740560875601,0.0001,140.78,140.77,279.47023777]
[1740560877405,0.0001,140.78,140.77,213.37023777]
[1740560877901,0.0001,140.78,140.77,206.26653777]
[1740560878729,0.0001,140.78,140.77,70.06653777]
[1740560882316,0.0001,140.78,140.74,70.06653777]
[1740560883228,0.0001,140.78,140.72,206.26653777]
[1740560883436,0.0001,140.78,140.72,70.06653777]
[1740560884518,0.0001,140.78,140.72,77.17283777]
[1740560885427,0.0001,140.78,140.74,0.03]
[1740560889640,7.1033,140.78,140.74,0.03]
[1740560890217,0.0001,140.78,140.74,0.03]
[1740560890525,0.0001,140.78,140.74,70.09653777]
[1740560891034,0.0001,140.78,140.74,206.29653777]
[1740560891738,0.0001,140.78,140.75,7.1047]
[1740560891937,0.0001,140.78,140.75,77.17123777]
[1740560892928,0.0001,140.78,140.75,219.39503777]
[1740560894240,0.0001,140.78,140.75,206.26653777]
[1740560895323,0.0001,140.78,140.75,213.37113777]
[1740560896739,0.0001,140.78,140.75,206.26653777]
[1740560897746,0.0001,140.78,140.75,70.06653777]
[1740560901949,21.59,140.77,140.74,0.03]
[1740560902255,102.69,140.77,140.74,0.03]
[1740560903747,7.1042,140.76,140.74,0.03]
[1740560906746,88.2042,140.76,140.74,0.03]
[1740560908147,10.67409848,140.75,140.74,0.03]
[1740560910256,1.59,140.77,140.74,0.03]
[1740560910455,5.08875088,140.77,140.74,0.03]
[1740560910638,20.0,140.75,140.74,0.03]
[1740560911637,27.1047,140.75,140.74,0.03]
[1740560920462,44.8666,140.75,140.71,0.03]
[1740560920652,81.1,140.74,140.71,0.03]
[1740560921446,7.1058,140.73,140.71,0.03]
[1740560923776,10.00232004,140.73,140.71,0.03]
[1740560924189,7.1058,140.73,140.71,0.03]
[1740560926159,3.57148414,140.72,140.71,0.03]
[1740560926358,3.57148414,140.72,140.66,70.09653777]
[1740560926359,20.0,140.69,140.66,0.03]
[1740560928672,7.1083,140.68,140.66,0.03]
[1740560929182,10.71334385,140.68,140.66,0.03]
[1740560931051,7.1073,140.7,140.66,0.03]
[1740560931274,7.1068,140.71,140.66,0.03]
[1740560932677,7.1698,140.71,140.66,0.03]
[1740560936577,7.1698,140.71,140.66,70.09653777]
[1740560936795,0.063,140.71,140.66,77.20563777]
[1740560937589,0.063,140.71,140.66,213.40563777]
[1740560939168,0.063,140.71,140.67,6.1692]
[1740560940675,0.063,140.71,140.67,13.2775]
[1740560941262,0.063,140.71,140.67,6.1692]
[1740560942467,0.063,140.71,140.67,76.23573777]
[1740560945492,20.063,140.71,140.67,70.06653777]
[1740560945900,20.063,140.71,140.66,0.03]
[1740560946395,20.0,140.69,140.66,0.03]
[1740560947577,7.1083,140.68,140.66,0.03]
[1740560950797,3.62428782,140.67,140.66,0.03]
[1740560951477,10.73308782,140.67,140.66,0.03]
[1740560952486,7.1084,140.68,140.66,0.03]
[1740560953890,10.58832939,140.68,140.66,0.03]
[1740560968389,20.0,140.65,140.61,70.09653777]
[1740560968595,20.0,140.64,140.61,0.03]
[1740560969614,23.63300363,140.63,140.61,0.03]
[1740560970716,7.1113,140.62,140.61,0.03]
[1740560984239,6.75543593,140.62,140.61,0.03]
[1740560984919,10.74400363,140.63,140.61,0.03]
[1740560985121,81.1,140.65,140.61,0.03]
[1740560985322,24.8792,140.68,140.61,6.6548]
[1740560985841,3.56119167,140.65,140.61,6.6548]
[1740560986345,81.1,140.69,140.61,6.6548]
[1740560986515,81.1,140.69,140.61,76.72133777]
[1740560986835,7.1083,140.68,140.61,76.72133777]
[1740560987744,3.55691225,140.67,140.61,76.72133777]
[1740560989147,7.1093,140.66,140.61,76.72133777]
[1740560990212,7.1093,140.66,140.61,83.83313777]
[1740560990843,0.063,140.67,140.61,220.03313777]
[1740560991040,0.063,140.67,140.61,263.83313777]
[1740560991244,0.063,140.67,140.63,6.2223]
[1740560992119,0.063,140.67,140.64,7.1103]
[1740560992319,0.063,140.67,140.64,213.37683777]
[1740560993446,0.063,140.67,140.64,206.26653777]
[1740560993843,0.063,140.67,140.64,213.37673777]
[1740560994018,0.063,140.67,140.64,256.17673777]
[1740560994341,0.063,140.71,140.67,1.6182]
[1740560994546,0.063,140.71,140.67,250.68473777]
[1740560994924,0.063,140.71,140.67,207.88473777]
[1740560997637,0.063,140.71,140.67,71.68473777]
[1740560999962,0.063,140.71,140.67,70.06653777]
[1740561003867,0.063,140.71,140.67,213.37513777]
[1740561005057,0.063,140.71,140.67,256.17513777]
[1740561005368,0.063,140.71,140.67,213.37513777]
[1740561008472,0.063,140.71,140.7,20.0]
[1740561008647,0.063,140.71,140.7,227.84823777]
[1740561009573,0.063,140.71,140.7,234.95553777]
[1740561009972,0.14124135,140.78,140.7,234.95553777]
[1740561009973,0.14124135,140.78,140.7,325.16903777]
[1740561010180,0.14124135,140.78,140.71,2.06537154]
[1740561010351,0.14124135,140.78,140.76,21.5004]
[1740561010552,0.14124135,140.78,140.76,227.76693777]
[1740561011852,0.14124135,140.78,140.76,234.87103777]